[Event "Early-Titled-Tuesday-Blitz-February-27-2024"]
[Site "Chess.com"]
[Date "2024.02.27"]
[Round "3"]
[White "Savagelittlemole"]
[Black "PabloZarnicki"]
[Result "0-1"]
[WhiteElo "2448"]
[BlackElo "2634"]
[TimeControl "180+1"]
[EndTime "8:27:41 PST"]
[Termination "PabloZarnicki won by resignation"]

1. e4 {[%clk 0:03:00.9]} 1... e6 {[%clk 0:02:59.6]} 2. d4 {[%clk 0:03:00.7]}
2... d5 {[%clk 0:03:00.5]} 3. Nd2 {[%clk 0:03:00.8]} 3... Nc6 {[%clk 0:02:56.8]}
4. Bb5 {[%clk 0:02:59.4]} 4... Nf6 {[%clk 0:02:48.7]} 5. e5 {[%clk 0:02:58.3]}
5... Nd7 {[%clk 0:02:27.9]} 6. c3 {[%clk 0:02:55.4]} 6... f6 {[%clk 0:02:26.3]}
7. f4 {[%clk 0:02:53]} 7... a6 {[%clk 0:02:19.9]} 8. Ba4 {[%clk 0:02:50.1]} 8...
Be7 {[%clk 0:02:10.9]} 9. Qh5+ {[%clk 0:02:46.3]} 9... g6 {[%clk 0:02:10.5]} 10.
Qh3 {[%clk 0:02:45.1]} 10... f5 {[%clk 0:02:00.7]} 11. g4 {[%clk 0:02:41.5]}
11... b5 {[%clk 0:01:53.7]} 12. Bc2 {[%clk 0:02:40.7]} 12... Nb6 {[%clk
0:01:53.4]} 13. Ngf3 {[%clk 0:02:39]} 13... Qd7 {[%clk 0:01:44.7]} 14. gxf5
{[%clk 0:02:38]} 14... exf5 {[%clk 0:01:44.2]} 15. Nf1 {[%clk 0:02:16]} 15...
Nd8 {[%clk 0:01:42]} 16. Ne3 {[%clk 0:02:14.8]} 16... Ne6 {[%clk 0:01:41]} 17.
Nxf5 {[%clk 0:02:11.6]} 17... gxf5 {[%clk 0:01:40.2]} 18. Bxf5 {[%clk
0:02:05.5]} 18... Qc6 {[%clk 0:01:27.6]} 19. Qh5+ {[%clk 0:02:02.6]} 19... Kd8
{[%clk 0:01:26.4]} 20. Rg1 {[%clk 0:01:52.9]} 20... Rf8 {[%clk 0:01:18.1]} 21.
Nh4 {[%clk 0:01:30.5]} 21... Bd7 {[%clk 0:01:04]} 22. Bxe6 {[%clk 0:01:22.8]}
22... Qxe6 {[%clk 0:00:54.6]} 23. f5 {[%clk 0:01:23.4]} 23... Qf7 {[%clk
0:00:47.8]} 24. Qxf7 {[%clk 0:01:05.1]} 24... Bxh4+ {[%clk 0:00:46]} 25. Ke2
{[%clk 0:01:01.9]} 25... Rxf7 {[%clk 0:00:46.9]} 26. f6 {[%clk 0:01:02.4]} 26...
Be6 {[%clk 0:00:38.5]} 27. Be3 {[%clk 0:00:56]} 27... Nc4 {[%clk 0:00:30.4]} 28.
Raf1 {[%clk 0:00:53.7]} 28... Nxe3 {[%clk 0:00:28.2]} 29. Kxe3 {[%clk
0:00:54.6]} 29... h6 {[%clk 0:00:24.5]} 30. Rg6 {[%clk 0:00:54.2]} 30... Kd7
{[%clk 0:00:23.1]} 31. Rfg1 {[%clk 0:00:51.7]} 31... Bg5+ {[%clk 0:00:20.5]} 32.
Kf3 {[%clk 0:00:51.5]} 32... Bf5 {[%clk 0:00:20.5]} 33. Rg7 {[%clk 0:00:48.4]}
33... Rxg7 {[%clk 0:00:20.6]} 34. fxg7 {[%clk 0:00:49.3]} 34... Rg8 {[%clk
0:00:19.8]} 35. h4 {[%clk 0:00:46.7]} 35... Be4+ {[%clk 0:00:20.2]} 36. Ke2
{[%clk 0:00:43.8]} 36... Bxh4 {[%clk 0:00:18.7]} 37. Rf1 {[%clk 0:00:33]} 37...
Ke7 {[%clk 0:00:18.5]} 38. c4 {[%clk 0:00:29.8]} 38... bxc4 {[%clk 0:00:18.3]}
39. b3 {[%clk 0:00:29.9]} 39... c3 {[%clk 0:00:18]} 0-1

[Event "Early-Titled-Tuesday-Blitz-February-27-2024"]
[Site "Chess.com"]
[Date "2024.02.27"]
[Round "3"]
[White "Hovik_Hayrapetyan"]
[Black "Aygehovit1992"]
[Result "1-0"]
[WhiteElo "2899"]
[BlackElo "2677"]
[TimeControl "180+1"]
[EndTime "8:27:44 PST"]
[Termination "Hovik_Hayrapetyan won on time"]

1. d4 {[%clk 0:03:00.9]} 1... Nf6 {[%clk 0:02:58.6]} 2. c4 {[%clk 0:03:00.7]}
2... e6 {[%clk 0:02:58.7]} 3. Nc3 {[%clk 0:03:00.4]} 3... Bb4 {[%clk 0:02:58.1]}
4. e3 {[%clk 0:03:00.8]} 4... b6 {[%clk 0:02:57.7]} 5. Ne2 {[%clk 0:02:57.7]}
5... Ba6 {[%clk 0:02:57.5]} 6. a3 {[%clk 0:02:57.3]} 6... Bxc3+ {[%clk
0:02:55.9]} 7. Nxc3 {[%clk 0:02:58.2]} 7... d5 {[%clk 0:02:56.2]} 8. b3 {[%clk
0:02:58.3]} 8... O-O {[%clk 0:02:45]} 9. Be2 {[%clk 0:02:55.3]} 9... Nbd7 {[%clk
0:02:41]} 10. O-O {[%clk 0:02:47.9]} 10... c5 {[%clk 0:02:37.8]} 11. dxc5 {[%clk
0:02:43.4]} 11... bxc5 {[%clk 0:02:34.3]} 12. cxd5 {[%clk 0:02:42.2]} 12... Bxe2
{[%clk 0:02:34.8]} 13. Nxe2 {[%clk 0:02:42.2]} 13... exd5 {[%clk 0:02:28.5]} 14.
b4 {[%clk 0:02:42.1]} 14... Rb8 {[%clk 0:02:11.4]} 15. bxc5 {[%clk 0:02:36.3]}
15... Nxc5 {[%clk 0:02:12.3]} 16. Nd4 {[%clk 0:02:36.6]} 16... Qa5 {[%clk
0:02:01.5]} 17. Nc6 {[%clk 0:02:31.3]} 17... Qb5 {[%clk 0:01:45.4]} 18. Nxb8
{[%clk 0:02:30.1]} 18... Rxb8 {[%clk 0:01:46.1]} 19. Bd2 {[%clk 0:02:29.8]}
19... Rd8 {[%clk 0:01:01.4]} 20. Bc3 {[%clk 0:02:22.8]} 20... Nfe4 {[%clk
0:01:01]} 21. Bd4 {[%clk 0:02:20.9]} 21... Ne6 {[%clk 0:00:59.9]} 22. Rb1 {[%clk
0:02:14]} 22... Qa6 {[%clk 0:01:00.1]} 23. a4 {[%clk 0:02:09.2]} 23... f5 {[%clk
0:01:00.4]} 24. f3 {[%clk 0:01:53.2]} 24... Nd6 {[%clk 0:00:57]} 25. Qb3 {[%clk
0:01:47.9]} 25... Nc4 {[%clk 0:00:57.2]} 26. Qb7 {[%clk 0:01:45.6]} 26... Qxa4
{[%clk 0:00:51.8]} 27. Qe7 {[%clk 0:01:42.4]} 27... Qd7 {[%clk 0:00:45.6]} 28.
Rb7 {[%clk 0:01:37.5]} 28... Qxe7 {[%clk 0:00:45.1]} 29. Rxe7 {[%clk 0:01:38.4]}
29... Nxd4 {[%clk 0:00:43]} 30. exd4 {[%clk 0:01:39.3]} 30... a5 {[%clk
0:00:43.7]} 31. Rb1 {[%clk 0:01:36.4]} 31... a4 {[%clk 0:00:20]} 32. Rbb7 {[%clk
0:01:36]} 32... a3 {[%clk 0:00:19.7]} 33. Rxg7+ {[%clk 0:01:36.2]} 33... Kf8
{[%clk 0:00:20.1]} 34. Rxh7 {[%clk 0:01:35.4]} 34... Kg8 {[%clk 0:00:19.1]} 35.
Rbg7+ {[%clk 0:01:17.1]} 35... Kf8 {[%clk 0:00:19.2]} 36. Rd7 {[%clk 0:01:17.7]}
36... Rxd7 {[%clk 0:00:11.3]} 37. Rxd7 {[%clk 0:01:18.6]} 37... Ne3 {[%clk
0:00:12.1]} 38. Ra7 {[%clk 0:01:16.9]} 38... Nc2 {[%clk 0:00:12.3]} 39. h4
{[%clk 0:01:16.4]} 39... f4 {[%clk 0:00:11.4]} 40. h5 {[%clk 0:01:16.6]} 40...
Kg8 {[%clk 0:00:12.1]} 41. h6 {[%clk 0:01:16]} 41... Kh8 {[%clk 0:00:12.7]} 42.
Kh2 {[%clk 0:01:15]} 42... Nxd4 {[%clk 0:00:07.9]} 43. Rxa3 {[%clk 0:01:13.9]}
43... Nf5 {[%clk 0:00:08.8]} 44. Ra5 {[%clk 0:01:12.1]} 44... Ne3 {[%clk
0:00:06.7]} 45. Ra4 {[%clk 0:01:12.3]} 45... Kh7 {[%clk 0:00:04.3]} 46. Rxf4
{[%clk 0:01:11.3]} 46... Kxh6 {[%clk 0:00:05.2]} 47. Kg3 {[%clk 0:01:10.6]}
47... Kg5 {[%clk 0:00:05.6]} 48. Rf8 {[%clk 0:01:09.8]} 48... d4 {[%clk
0:00:05.5]} 49. Kf2 {[%clk 0:01:09.9]} 49... Nd1+ {[%clk 0:00:03.3]} 50. Ke2
{[%clk 0:01:08.8]} 50... Nc3+ {[%clk 0:00:02.6]} 51. Kd3 {[%clk 0:01:09]} 51...
Nd5 {[%clk 0:00:02.2]} 52. Kxd4 {[%clk 0:01:08.3]} 1-0

[Event "Early-Titled-Tuesday-Blitz-February-27-2024"]
[Site "Chess.com"]
[Date "2024.02.27"]
[Round "3"]
[White "Akylbek2021"]
[Black "MusicCityMaster"]
[Result "0-1"]
[WhiteElo "2288"]
[BlackElo "2567"]
[TimeControl "180+1"]
[EndTime "8:27:44 PST"]
[Termination "MusicCityMaster won on time"]

1. e4 {[%clk 0:02:55.2]} 1... e6 {[%clk 0:02:59.3]} 2. d4 {[%clk 0:02:55.2]}
2... d5 {[%clk 0:02:43.2]} 3. Nd2 {[%clk 0:02:54.8]} 3... Nc6 {[%clk 0:02:42.8]}
4. Ngf3 {[%clk 0:02:51.2]} 4... Nf6 {[%clk 0:02:42.6]} 5. e5 {[%clk 0:02:31.5]}
5... Nd7 {[%clk 0:02:42]} 6. Be2 {[%clk 0:02:28.7]} 6... f6 {[%clk 0:02:37]} 7.
exf6 {[%clk 0:02:29.6]} 7... Qxf6 {[%clk 0:02:36.9]} 8. Nf1 {[%clk 0:02:30.1]}
8... Bd6 {[%clk 0:02:37]} 9. Ne3 {[%clk 0:02:28.8]} 9... O-O {[%clk 0:02:37.1]}
10. O-O {[%clk 0:02:28.4]} 10... Kh8 {[%clk 0:02:37.1]} 11. c4 {[%clk
0:02:22.2]} 11... dxc4 {[%clk 0:02:34.8]} 12. Nxc4 {[%clk 0:02:21.2]} 12... Nb6
{[%clk 0:02:30.7]} 13. Nxd6 {[%clk 0:02:11.5]} 13... cxd6 {[%clk 0:02:30.8]} 14.
Bg5 {[%clk 0:02:08.2]} 14... Qg6 {[%clk 0:02:30.1]} 15. Bh4 {[%clk 0:02:06.2]}
15... Nd5 {[%clk 0:02:26.5]} 16. Bd3 {[%clk 0:01:56.8]} 16... Qh5 {[%clk
0:02:23.4]} 17. Bg3 {[%clk 0:01:51]} 17... Nf4 {[%clk 0:02:23.3]} 18. Be4 {[%clk
0:01:47.2]} 18... e5 {[%clk 0:02:15.8]} 19. dxe5 {[%clk 0:01:43.9]} 19... dxe5
{[%clk 0:02:07.3]} 20. Re1 {[%clk 0:01:41.3]} 20... Bg4 {[%clk 0:02:06.6]} 21.
Qb3 {[%clk 0:01:15.1]} 21... Rab8 {[%clk 0:01:57.8]} 22. Rad1 {[%clk 0:01:09]}
22... Nd4 {[%clk 0:01:51.6]} 23. Rxd4 {[%clk 0:00:47.6]} 23... exd4 {[%clk
0:01:50]} 24. Nxd4 {[%clk 0:00:48.5]} 24... Rbe8 {[%clk 0:01:39.4]} 25. f3
{[%clk 0:00:42.7]} 25... Bc8 {[%clk 0:01:35.9]} 26. Qe3 {[%clk 0:00:27.7]} 26...
Nd5 {[%clk 0:01:32]} 27. Qb3 {[%clk 0:00:26]} 27... Nf6 {[%clk 0:01:30.6]} 28.
Bxb7 {[%clk 0:00:23.6]} 28... Rxe1+ {[%clk 0:01:28.7]} 29. Bxe1 {[%clk
0:00:24.5]} 29... Qc5 {[%clk 0:01:26]} 30. Bc3 {[%clk 0:00:18.5]} 30... Bxb7
{[%clk 0:01:18]} 31. Qxb7 {[%clk 0:00:17.3]} 31... h6 {[%clk 0:01:17.4]} 32. Kh1
{[%clk 0:00:15.7]} 32... Re8 {[%clk 0:01:17.3]} 33. h3 {[%clk 0:00:11.3]} 33...
Qg5 {[%clk 0:01:12.1]} 34. Qf7 {[%clk 0:00:10.6]} 34... Qc1+ {[%clk 0:00:54.8]}
35. Kh2 {[%clk 0:00:11.1]} 35... Qf4+ {[%clk 0:00:55]} 36. g3 {[%clk 0:00:05.8]}
36... Ng4+ {[%clk 0:00:54.8]} 37. hxg4 {[%clk 0:00:02.7]} 37... Qxf7 {[%clk
0:00:55.7]} 38. Nf5 {[%clk 0:00:02.5]} 38... Re2+ {[%clk 0:00:54.4]} 39. Kh3
{[%clk 0:00:03.1]} 39... Qxa2 {[%clk 0:00:51.2]} 40. Nxh6 {[%clk 0:00:03]} 40...
Qb3 {[%clk 0:00:47.5]} 41. Nf5 {[%clk 0:00:03]} 41... Qc2 {[%clk 0:00:47.7]} 0-1

[Event "Early-Titled-Tuesday-Blitz-February-27-2024"]
[Site "Chess.com"]
[Date "2024.02.27"]
[Round "3"]
[White "LeninGuerra"]
[Black "Janosik"]
[Result "0-1"]
[WhiteElo "2575"]
[BlackElo "2850"]
[TimeControl "180+1"]
[EndTime "8:27:46 PST"]
[Termination "Janosik won by resignation"]

1. e4 {[%clk 0:03:00.9]} 1... e5 {[%clk 0:02:54.4]} 2. Nf3 {[%clk 0:03:00.8]}
2... Nc6 {[%clk 0:02:52.9]} 3. Bb5 {[%clk 0:03:01.4]} 3... a6 {[%clk 0:02:50.4]}
4. Ba4 {[%clk 0:03:01]} 4... d6 {[%clk 0:02:48.5]} 5. O-O {[%clk 0:03:00.5]}
5... Bd7 {[%clk 0:02:47.7]} 6. c3 {[%clk 0:02:59.9]} 6... Nge7 {[%clk
0:02:46.7]} 7. Qe2 {[%clk 0:03:00]} 7... g6 {[%clk 0:02:47.2]} 8. Rd1 {[%clk
0:02:59.9]} 8... Bg7 {[%clk 0:02:47.7]} 9. d3 {[%clk 0:03:00]} 9... O-O {[%clk
0:02:47.4]} 10. Bb3 {[%clk 0:02:59.9]} 10... h6 {[%clk 0:02:45.2]} 11. Nbd2
{[%clk 0:02:59.8]} 11... Kh8 {[%clk 0:02:45.1]} 12. Nf1 {[%clk 0:02:57.7]} 12...
f5 {[%clk 0:02:45.1]} 13. exf5 {[%clk 0:02:58.6]} 13... gxf5 {[%clk 0:02:43.4]}
14. Nh4 {[%clk 0:02:55.8]} 14... Qe8 {[%clk 0:02:39.3]} 15. Ng3 {[%clk
0:02:49.1]} 15... f4 {[%clk 0:02:35.5]} 16. Ne4 {[%clk 0:02:26.9]} 16... Ng6
{[%clk 0:02:11]} 17. Qh5 {[%clk 0:02:17.1]} 17... Nxh4 {[%clk 0:02:08.5]} 18.
Qxh4 {[%clk 0:02:18]} 18... Qg6 {[%clk 0:02:07.7]} 19. f3 {[%clk 0:01:41.7]}
19... Rad8 {[%clk 0:02:00.4]} 20. Bd5 {[%clk 0:01:41.6]} 20... b6 {[%clk
0:01:50.3]} 21. Nf2 {[%clk 0:01:16.9]} 21... Ne7 {[%clk 0:00:58]} 22. Be4 {[%clk
0:01:12.4]} 22... Nf5 {[%clk 0:00:38.7]} 23. Qg4 {[%clk 0:01:05.1]} 23... Qf7
{[%clk 0:00:38.4]} 24. d4 {[%clk 0:00:58.4]} 24... Nxd4 {[%clk 0:00:36.1]} 25.
Qh4 {[%clk 0:00:54.8]} 25... Nf5 {[%clk 0:00:35.9]} 26. Bxf5 {[%clk 0:00:46.1]}
26... Bxf5 {[%clk 0:00:36.8]} 27. Ng4 {[%clk 0:00:36.3]} 27... Kh7 {[%clk
0:00:36.6]} 28. b3 {[%clk 0:00:28.3]} 28... d5 {[%clk 0:00:35.3]} 29. Ba3 {[%clk
0:00:26.9]} 29... c5 {[%clk 0:00:35.5]} 30. b4 {[%clk 0:00:27.1]} 30... cxb4
{[%clk 0:00:29.9]} 31. Bxb4 {[%clk 0:00:27.2]} 31... Rfe8 {[%clk 0:00:30.6]} 32.
a4 {[%clk 0:00:27.4]} 32... a5 {[%clk 0:00:30.8]} 33. Ba3 {[%clk 0:00:27.3]}
33... e4 {[%clk 0:00:31.7]} 34. Rab1 {[%clk 0:00:23.4]} 34... Qg6 {[%clk
0:00:23.4]} 35. Rb5 {[%clk 0:00:18.7]} 35... exf3 {[%clk 0:00:21.1]} 36. Rbxd5
{[%clk 0:00:17.5]} 36... Rxd5 {[%clk 0:00:20.1]} 37. Rxd5 {[%clk 0:00:18.4]}
37... Qxg4 {[%clk 0:00:19.2]} 38. Qxg4 {[%clk 0:00:16.7]} 38... Bxg4 {[%clk
0:00:20.1]} 0-1

[Event "Early-Titled-Tuesday-Blitz-February-27-2024"]
[Site "Chess.com"]
[Date "2024.02.27"]
[Round "3"]
[White "WilsonPalencia21"]
[Black "thebeast2900"]
[Result "1-0"]
[WhiteElo "2562"]
[BlackElo "2307"]
[TimeControl "180+1"]
[EndTime "8:27:46 PST"]
[Termination "WilsonPalencia21 won on time"]

1. d4 {[%clk 0:02:57]} 1... Nf6 {[%clk 0:02:59]} 2. c4 {[%clk 0:02:57.3]} 2...
e6 {[%clk 0:02:56.2]} 3. Nf3 {[%clk 0:02:57.3]} 3... Bb4+ {[%clk 0:02:53.7]} 4.
Nbd2 {[%clk 0:02:56.8]} 4... O-O {[%clk 0:02:48.1]} 5. a3 {[%clk 0:02:54.5]}
5... Be7 {[%clk 0:02:45.7]} 6. e4 {[%clk 0:02:54.3]} 6... d6 {[%clk 0:02:44.9]}
7. Qc2 {[%clk 0:02:51.6]} 7... Nbd7 {[%clk 0:02:17.1]} 8. e5 {[%clk 0:02:49.1]}
8... dxe5 {[%clk 0:02:16]} 9. dxe5 {[%clk 0:02:50]} 9... Ng4 {[%clk 0:02:14.6]}
10. Qe4 {[%clk 0:02:49.3]} 10... f5 {[%clk 0:01:57.9]} 11. exf6 {[%clk
0:02:45.2]} 11... Ndxf6 {[%clk 0:01:58.5]} 12. Qc2 {[%clk 0:02:44.1]} 12... Bc5
{[%clk 0:01:47.4]} 13. Nb3 {[%clk 0:02:07.8]} 13... Bxf2+ {[%clk 0:01:42.9]} 14.
Ke2 {[%clk 0:02:07.5]} 14... e5 {[%clk 0:01:00.9]} 15. h3 {[%clk 0:02:06.7]}
15... e4 {[%clk 0:00:55]} 16. hxg4 {[%clk 0:02:06.7]} 16... exf3+ {[%clk
0:00:54.2]} 17. gxf3 {[%clk 0:01:58]} 17... Bd4 {[%clk 0:00:35.4]} 18. Nxd4
{[%clk 0:01:44]} 18... Qxd4 {[%clk 0:00:30.6]} 19. Qd3 {[%clk 0:01:23.8]} 19...
Re8+ {[%clk 0:00:25.2]} 20. Kd1 {[%clk 0:01:23.8]} 20... Qf2 {[%clk 0:00:11.1]}
21. Bd2 {[%clk 0:01:17.9]} 21... Bxg4 {[%clk 0:00:09.2]} 22. Kc2 {[%clk
0:00:16.1]} 22... Qxf3 {[%clk 0:00:07]} 23. Qxf3 {[%clk 0:00:11.9]} 23... Bxf3
{[%clk 0:00:07.9]} 24. Rh3 {[%clk 0:00:12.1]} 24... Bg4 {[%clk 0:00:06.4]} 25.
Rg3 {[%clk 0:00:12.1]} 25... Rad8 {[%clk 0:00:04.7]} 26. Bc3 {[%clk 0:00:11.6]}
26... Bf5+ {[%clk 0:00:04.5]} 27. Kb3 {[%clk 0:00:11.9]} 27... Kf7 {[%clk
0:00:02.9]} 28. Bg2 {[%clk 0:00:10.9]} 28... g6 {[%clk 0:00:01.3]} 29. Rf1
{[%clk 0:00:11.1]} 1-0

[Event "Early-Titled-Tuesday-Blitz-February-27-2024"]
[Site "Chess.com"]
[Date "2024.02.27"]
[Round "3"]
[White "Roman_Ovetchkin"]
[Black "Rogarcia1"]
[Result "1-0"]
[WhiteElo "2601"]
[BlackElo "2381"]
[TimeControl "180+1"]
[EndTime "8:27:47 PST"]
[Termination "Roman_Ovetchkin won by resignation"]

1. d4 {[%clk 0:03:00.9]} 1... d5 {[%clk 0:02:59.7]} 2. c4 {[%clk 0:03:00.7]}
2... c6 {[%clk 0:02:59.6]} 3. Nf3 {[%clk 0:03:00.3]} 3... Nf6 {[%clk 0:02:59.7]}
4. Qc2 {[%clk 0:02:59.8]} 4... dxc4 {[%clk 0:02:53.4]} 5. e4 {[%clk 0:02:56.7]}
5... b5 {[%clk 0:02:53.7]} 6. b3 {[%clk 0:02:54.5]} 6... cxb3 {[%clk 0:02:53.3]}
7. axb3 {[%clk 0:02:55.4]} 7... e6 {[%clk 0:02:53.8]} 8. Bd2 {[%clk 0:02:54]}
8... b4 {[%clk 0:02:33.7]} 9. Bd3 {[%clk 0:02:43.4]} 9... a5 {[%clk 0:02:31.6]}
10. Bg5 {[%clk 0:02:30.3]} 10... Be7 {[%clk 0:02:22.5]} 11. Nbd2 {[%clk
0:02:28.2]} 11... Ba6 {[%clk 0:02:19.8]} 12. Nc4 {[%clk 0:02:19.8]} 12... Bb5
{[%clk 0:02:10.5]} 13. O-O {[%clk 0:02:13]} 13... h6 {[%clk 0:02:09.5]} 14. Bh4
{[%clk 0:02:05.2]} 14... O-O {[%clk 0:02:05.1]} 15. Rfd1 {[%clk 0:01:50.1]}
15... Nbd7 {[%clk 0:01:46.7]} 16. Qe2 {[%clk 0:01:47.2]} 16... a4 {[%clk
0:01:39.7]} 17. bxa4 {[%clk 0:01:22.2]} 17... Rxa4 {[%clk 0:01:39.3]} 18. Rxa4
{[%clk 0:01:17.9]} 18... Bxa4 {[%clk 0:01:39.4]} 19. Rb1 {[%clk 0:01:11.4]}
19... Bb5 {[%clk 0:01:35.1]} 20. e5 {[%clk 0:01:08]} 20... Nd5 {[%clk
0:01:34.5]} 21. Qe4 {[%clk 0:01:08]} 21... g6 {[%clk 0:01:30.8]} 22. Qg4 {[%clk
0:01:06.5]} 22... Kg7 {[%clk 0:01:22.3]} 23. Bxe7 {[%clk 0:00:52.6]} 23... Qxe7
{[%clk 0:01:17.3]} 24. h4 {[%clk 0:00:53.2]} 24... h5 {[%clk 0:00:55.1]} 25. Qg3
{[%clk 0:00:52.8]} 25... c5 {[%clk 0:00:55.1]} 26. Bf1 {[%clk 0:00:35.2]} 26...
Ba6 {[%clk 0:00:46.8]} 27. Nd6 {[%clk 0:00:32.4]} 27... Bxf1 {[%clk 0:00:46]}
28. Kxf1 {[%clk 0:00:30.6]} 28... cxd4 {[%clk 0:00:43.5]} 29. Nxd4 {[%clk
0:00:30.3]} 29... f5 {[%clk 0:00:20.1]} 30. Nc6 {[%clk 0:00:24.9]} 30... f4
{[%clk 0:00:20.2]} 31. Qh3 {[%clk 0:00:24.5]} 31... Qxd6 {[%clk 0:00:16.2]} 32.
exd6 {[%clk 0:00:24.1]} 32... Rf6 {[%clk 0:00:15.4]} 33. Nxb4 {[%clk 0:00:20.5]}
33... Nc3 {[%clk 0:00:12.7]} 34. Rc1 {[%clk 0:00:20.2]} 34... Ne4 {[%clk
0:00:12.7]} 35. Rc7 {[%clk 0:00:19.9]} 35... Nc5 {[%clk 0:00:13]} 36. Qc3 {[%clk
0:00:19.1]} 1-0

[Event "Early-Titled-Tuesday-Blitz-February-27-2024"]
[Site "Chess.com"]
[Date "2024.02.27"]
[Round "3"]
[White "only_strong_moves"]
[Black "dosto07"]
[Result "0-1"]
[WhiteElo "2645"]
[BlackElo "2480"]
[TimeControl "180+1"]
[EndTime "8:27:49 PST"]
[Termination "dosto07 won by resignation"]

1. d4 {[%clk 0:02:52.4]} 1... d5 {[%clk 0:02:59.6]} 2. Nc3 {[%clk 0:02:51.6]}
2... Nf6 {[%clk 0:02:57.1]} 3. Bf4 {[%clk 0:02:50.7]} 3... c6 {[%clk 0:02:55.2]}
4. e3 {[%clk 0:02:48.3]} 4... Bf5 {[%clk 0:02:49.4]} 5. Nf3 {[%clk 0:02:47.9]}
5... e6 {[%clk 0:02:49]} 6. Ne5 {[%clk 0:02:48]} 6... h6 {[%clk 0:02:29.6]} 7.
g4 {[%clk 0:02:46.9]} 7... Bh7 {[%clk 0:02:29.7]} 8. Bd3 {[%clk 0:02:47]} 8...
Bxd3 {[%clk 0:02:27.9]} 9. Qxd3 {[%clk 0:02:47.9]} 9... Nbd7 {[%clk 0:02:27.6]}
10. Rg1 {[%clk 0:02:38.2]} 10... g5 {[%clk 0:02:19.6]} 11. Bg3 {[%clk 0:02:36]}
11... Bb4 {[%clk 0:02:20.2]} 12. f3 {[%clk 0:02:33.9]} 12... Qa5 {[%clk
0:02:18.6]} 13. Ke2 {[%clk 0:02:21]} 13... h5 {[%clk 0:02:05.5]} 14. gxh5 {[%clk
0:02:06.1]} 14... Nxh5 {[%clk 0:01:59.1]} 15. Be1 {[%clk 0:01:45.7]} 15... Nhf6
{[%clk 0:01:43]} 16. Rg2 {[%clk 0:01:35.3]} 16... Nxe5 {[%clk 0:01:39.8]} 17.
dxe5 {[%clk 0:01:36.2]} 17... Nd7 {[%clk 0:01:40.1]} 18. f4 {[%clk 0:01:08.1]}
18... gxf4 {[%clk 0:01:32.2]} 19. exf4 {[%clk 0:01:09]} 19... O-O-O {[%clk
0:01:24.3]} 20. a3 {[%clk 0:00:56.9]} 20... Nc5 {[%clk 0:01:24.1]} 21. Qd4
{[%clk 0:00:48.9]} 21... Qa6+ {[%clk 0:01:06.4]} 22. Kd1 {[%clk 0:00:48.5]}
22... Bxc3 {[%clk 0:01:06.3]} 23. Qxc3 {[%clk 0:00:30.2]} 23... Ne4 {[%clk
0:01:04.2]} 24. Qd3 {[%clk 0:00:29.6]} 24... Qb6 {[%clk 0:00:58.7]} 25. c3
{[%clk 0:00:14.4]} 25... Rdg8 {[%clk 0:00:57.7]} 26. Qf3 {[%clk 0:00:12.6]}
26... Qb3+ {[%clk 0:00:51.2]} 27. Kc1 {[%clk 0:00:11.3]} 27... Nc5 {[%clk
0:00:48.6]} 28. Bg3 {[%clk 0:00:07.1]} 28... Qc4 {[%clk 0:00:41.4]} 29. Kc2
{[%clk 0:00:06.4]} 29... Qa4+ {[%clk 0:00:35.1]} 30. Kb1 {[%clk 0:00:05.9]}
30... Nb3 {[%clk 0:00:33.2]} 31. Ra2 {[%clk 0:00:06.1]} 31... Qc4 {[%clk
0:00:30.3]} 32. Qd1 {[%clk 0:00:05.1]} 32... Nc5 {[%clk 0:00:29.7]} 33. b4
{[%clk 0:00:04.4]} 33... Ne4 {[%clk 0:00:29]} 34. Qc2 {[%clk 0:00:02.4]} 34...
Nxc3+ {[%clk 0:00:27]} 35. Ka1 {[%clk 0:00:02.7]} 35... Nxa2 {[%clk 0:00:26.6]}
36. Qxa2 {[%clk 0:00:02.4]} 36... Qf1+ {[%clk 0:00:25.4]} 0-1

[Event "Early-Titled-Tuesday-Blitz-February-27-2024"]
[Site "Chess.com"]
[Date "2024.02.27"]
[Round "3"]
[White "Iunusovnuriddin"]
[Black "HittingRookBottom"]
[Result "1-0"]
[WhiteElo "2353"]
[BlackElo "2000"]
[TimeControl "180+1"]
[EndTime "8:27:51 PST"]
[Termination "Iunusovnuriddin won by checkmate"]

1. e4 {[%clk 0:02:56.7]} 1... c6 {[%clk 0:03:00.5]} 2. Nc3 {[%clk 0:02:56.6]}
2... d5 {[%clk 0:03:01.2]} 3. Nf3 {[%clk 0:02:57.1]} 3... dxe4 {[%clk
0:03:01.3]} 4. Nxe4 {[%clk 0:02:58]} 4... Nf6 {[%clk 0:03:02.2]} 5. Qe2 {[%clk
0:02:56.3]} 5... Bf5 {[%clk 0:02:59.1]} 6. Nxf6+ {[%clk 0:02:55.9]} 6... gxf6
{[%clk 0:02:58.9]} 7. d3 {[%clk 0:02:56.3]} 7... Nd7 {[%clk 0:02:50.3]} 8. g3
{[%clk 0:02:56.2]} 8... Qb6 {[%clk 0:02:47.7]} 9. Bg2 {[%clk 0:02:54.4]} 9...
O-O-O {[%clk 0:02:47.8]} 10. Be3 {[%clk 0:02:49.3]} 10... Qa6 {[%clk 0:02:40.7]}
11. O-O {[%clk 0:02:05.6]} 11... h5 {[%clk 0:02:40.7]} 12. b4 {[%clk 0:02:04.8]}
12... e6 {[%clk 0:02:39.7]} 13. Nd4 {[%clk 0:02:03.6]} 13... Bg6 {[%clk
0:02:34.3]} 14. b5 {[%clk 0:02:02.7]} 14... cxb5 {[%clk 0:02:28.6]} 15. Rfb1
{[%clk 0:01:46]} 15... b4 {[%clk 0:02:23.5]} 16. a3 {[%clk 0:01:46]} 16... e5
{[%clk 0:02:09.4]} 17. axb4 {[%clk 0:01:44.6]} 17... Qd6 {[%clk 0:01:57]} 18.
Nb5 {[%clk 0:01:37.2]} 18... Qe6 {[%clk 0:01:49.2]} 19. Rxa7 {[%clk 0:01:21.9]}
19... e4 {[%clk 0:01:40.4]} 20. Ra8+ {[%clk 0:01:14.4]} 20... Nb8 {[%clk
0:01:40.3]} 21. Bf4 {[%clk 0:01:08.5]} 21... Bd6 {[%clk 0:01:37.8]} 22. Nxd6+
{[%clk 0:00:58.7]} 22... Rxd6 {[%clk 0:01:37.8]} 23. Bh3 {[%clk 0:00:59.3]}
23... f5 {[%clk 0:01:37.6]} 24. Bxd6 {[%clk 0:00:58.8]} 24... Qxd6 {[%clk
0:01:35.5]} 25. Qxe4 {[%clk 0:00:58.6]} 25... Kc7 {[%clk 0:01:27.4]} 26. Qc4+
{[%clk 0:00:55.8]} 26... Qc6 {[%clk 0:01:11.4]} 27. Qxc6+ {[%clk 0:00:52.1]}
27... bxc6 {[%clk 0:01:11.5]} 28. Rba1 {[%clk 0:00:51.7]} 28... Rc8 {[%clk
0:00:49.5]} 29. Bg2 {[%clk 0:00:49.4]} 29... Kb7 {[%clk 0:00:46.4]} 30. R1a7+
{[%clk 0:00:38.9]} 30... Kb6 {[%clk 0:00:46.7]} 31. c4 {[%clk 0:00:29.7]} 31...
f6 {[%clk 0:00:43.7]} 32. d4 {[%clk 0:00:26.8]} 32... Bf7 {[%clk 0:00:33.6]} 33.
c5+ {[%clk 0:00:26.9]} 33... Kb5 {[%clk 0:00:33.6]} 34. Rb7+ {[%clk 0:00:27.5]}
34... Kc4 {[%clk 0:00:31]} 35. Raxb8 {[%clk 0:00:28.4]} 35... Rxb8 {[%clk
0:00:30.3]} 36. Rxb8 {[%clk 0:00:29.3]} 36... Kxd4 {[%clk 0:00:30.8]} 37. Bxc6
{[%clk 0:00:28.4]} 37... Bc4 {[%clk 0:00:31.1]} 38. Bg2 {[%clk 0:00:27]} 38...
Be2 {[%clk 0:00:30]} 39. c6 {[%clk 0:00:27.7]} 39... Ba6 {[%clk 0:00:29.5]} 40.
c7 {[%clk 0:00:28.6]} 40... Kc4 {[%clk 0:00:29.3]} 41. Bb7 {[%clk 0:00:28.2]}
41... Bb5 {[%clk 0:00:28.9]} 42. c8=Q+ {[%clk 0:00:28.2]} 42... Kxb4 {[%clk
0:00:29.8]} 43. Ba6 {[%clk 0:00:27.9]} 43... Kb3 {[%clk 0:00:29.6]} 44. Rxb5+
{[%clk 0:00:28.1]} 44... Ka2 {[%clk 0:00:30]} 45. Qc2+ {[%clk 0:00:28.4]} 45...
Ka1 {[%clk 0:00:30.4]} 46. Qb1# {[%clk 0:00:28.8]} 1-0